bitfinex/quotes_ETHUSD_20240819
["timestamp","ask_amount","ask_price","bid_price","bid_amount"]
[1724037698965,0.07692732,2643.3,2643.0,2.64846]
[1724037699359,0.07690978,2643.2,2643.0,2.64846]
[1724037699561,2.9391651,2643.6,2643.0,2.64846]
[1724037699815,24.72960742,2643.5,2642.8,4.99383]
[1724037700106,25.28831293,2643.5,2642.8,4.99383]
[1724037701099,2.6482,2643.3,2642.6,6.51183]
[1724037701298,19.97482,2643.2,2642.6,2.64883]
[1724037701529,22.70003638,2643.2,2642.6,2.64883]
[1724037702387,2.64842,2643.1,2642.5,2.4868]
[1724037702591,2.61158482,2643.0,2642.5,2.4868]
[1724037702992,2.61158482,2643.0,2642.5,5.13578]
[1724037704013,0.07673918,2643.0,2642.6,2.64881]
[1724037704214,19.71,2643.2,2642.8,2.64869]
[1724037704414,2.64813,2643.4,2642.8,2.64869]
[1724037704415,19.71,2643.0,2642.8,2.64869]
[1724037704694,19.71,2643.0,2642.6,2.64881]
[1724037704695,0.07667142,2642.9,2642.6,2.64881]
[1724037705335,0.07667142,2642.9,2642.7,2.6488]
[1724037707129,0.07667142,2642.9,2642.5,5.13572]
[1724037707303,0.07667142,2642.9,2642.6,0.55]
[1724037707724,2.05533856,2642.9,2642.5,2.4868]
[1724037708110,4.70395856,2642.9,2642.5,2.4868]
[1724037708430,2.05533856,2642.9,2642.5,2.4868]
[1724037709713,2.05533856,2642.9,2642.4,2.6491]
[1724037710328,21.76533856,2642.9,2642.4,2.6491]
[1724037711364,2.44138486,2642.8,2642.3,3.863]
[1724037711745,0.07651527,2642.7,2642.2,2.4579]
[1724037711927,3.175032,2642.7,2641.9,4.91617]
[1724037712128,2.72537527,2642.7,2641.9,4.91617]
[1724037712327,2.72537527,2642.7,2642.1,2.64934]
[1724037712532,2.72537527,2642.7,2641.9,4.91617]
[1724037712833,2.72973753,2642.6,2642.0,2.64943]
[1724037713148,0.07673074,2642.5,2642.1,2.6494]
[1724037713679,0.07673074,2642.5,2642.2,2.64928]
[1724037713832,0.07673074,2642.5,2642.1,2.64933]
[1724037714046,2.4572,2642.8,2642.1,2.64933]
[1724037714241,0.07657342,2642.4,2642.1,2.64933]
[1724037714445,3.159393,2642.7,2642.1,2.64933]
[1724037714866,0.0767356,2642.6,2641.9,4.91618]
[1724037715179,0.64606846,2642.6,2641.9,2.64958]
[1724037715327,0.64606846,2642.6,2641.8,2.6497]
[1724037715328,2.64907,2642.5,2641.8,2.6497]
[1724037715543,2.72583013,2642.5,2641.8,2.6497]
[1724037716947,2.372,2642.4,2641.8,2.6497]
[1724037717400,0.07664793,2642.3,2641.8,2.6497]
[1724037718083,3.23563972,2642.3,2641.7,2.64973]
[1724037718800,5.88492972,2642.3,2641.7,2.64973]
[1724037718938,2.64931,2642.2,2641.6,2.3056]
[1724037719146,2.64942,2642.1,2641.5,2.64995]
[1724037719595,2.64942,2642.1,2641.3,5.03297]
[1724037719743,2.64963,2641.9,2641.4,0.55]
[1724037720186,0.0764726,2641.8,2641.4,0.55]
[1724037720353,0.0764726,2641.8,2641.1,6.51336]
[1724037720958,2.64987,2641.7,2641.1,2.65036]
[1724037721147,2.64987,2641.7,2641.0,3.3630126]
[1724037721148,2.64993,2641.6,2641.0,2.3756]
[1724037721344,2.3261,2641.5,2640.9,2.65053]
[1724037721544,2.3261,2641.5,2641.0,2.65049]
[1724037721845,0.07618557,2641.4,2640.9,2.65053]
[1724037722155,0.07618557,2641.4,2641.1,2.6504]
[1724037722881,2.64981,2641.7,2641.1,2.65033]
[1724037723085,0.07591074,2641.3,2641.1,2.65033]
[1724037723293,2.3281,2641.8,2641.2,2.3211]
[1724037723458,2.3281,2641.8,2641.2,3.2003]
[1724037723459,2.64973,2641.8,2641.2,3.2003]
[1724037723802,0.0761041,2641.7,2641.2,3.2003]
[1724037724090,0.0761041,2641.7,2641.1,2.65033]
[1724037724255,0.0761041,2641.7,2641.3,2.65019]
[1724037724460,2.64965,2641.9,2641.3,2.65019]
[1724037724644,0.07606687,2641.6,2641.3,2.65019]
[1724037724844,2.64965,2641.9,2641.3,2.65019]
[1724037725045,0.07620247,2641.8,2641.3,4.97129]
[1724037725697,0.07620247,2641.8,2641.3,4.97124]
[1724037725879,0.07620247,2641.8,2641.5,2.64999]
[1724037726043,4.97761,2642.0,2641.3,7.62136]
[1724037726263,0.07609133,2641.9,2641.4,3.147204]
[1724037726460,0.07609133,2641.9,2641.5,2.65]
[1724037726992,5.64945,2642.1,2641.5,2.65]
[1724037727145,0.07605856,2641.8,2641.5,2.65]
[1724037727347,8.29894,2642.1,2641.5,2.65]
[1724037727586,0.07599076,2641.7,2641.5,2.65]
[1724037727746,2.64952,2642.0,2641.4,3.147224]
[1724037727953,0.07592574,2641.6,2641.4,3.147224]
[1724037728146,2.64952,2642.0,2641.4,3.147224]
[1724037728576,0.07609914,2641.9,2641.4,2.6501]
[1724037729886,0.07609914,2641.9,2641.5,2.64999]
[1724037731186,0.07609914,2641.9,2641.5,2.64994]
[1724037731393,2.64932,2642.2,2641.6,0.651294]
[1724037731687,0.07343786,2642.1,2641.6,0.651294]
[1724037731846,2.72286786,2642.1,2641.6,0.651294]
[1724037732669,0.07343786,2642.1,2641.6,0.651294]
[1724037733786,2.64932,2642.2,2641.6,0.651294]
[1724037733996,2.64932,2642.2,2641.5,2.64994]
[1724037734349,2.64946,2642.1,2641.5,2.64994]
[1724037734748,0.07354605,2642.0,2641.5,2.64994]
[1724037735558,0.07354605,2642.0,2641.5,5.29989]
[1724037735775,0.07354605,2642.0,2641.6,0.529989]
[1724037735975,0.07354605,2642.0,2641.5,2.64994]
[1724037736289,0.07354605,2642.0,2641.6,2.64982]
[1724037736665,2.64933,2642.2,2641.6,2.64982]
[1724037738875,0.07361566,2642.1,2641.6,2.64982]
[1724037739081,2.72302566,2642.1,2641.6,0.529976]
[1724037739284,2.72302566,2642.1,2641.5,2.64994]
[1724037742658,2.72302566,2642.1,2641.5,5.29988]
[1724037743504,2.72302566,2642.1,2641.5,2.64994]
[1724037744586,2.64963,2641.9,2641.3,2.65015]
[1724037744967,0.0735662,2641.8,2641.3,2.65015]
[1724037747104,2.7232962,2641.8,2641.3,2.65015]
[1724037748592,2.64973,2641.8,2641.3,2.65015]
[1724037748793,2.64973,2641.8,2641.1,9.4609653]
[1724037749039,2.56682004,2641.7,2641.1,6.8105653]
[1724037749612,2.4933,2641.7,2641.1,6.8105653]
[1724037749826,2.4933,2641.7,2641.2,2.65029]
[1724037750139,2.65001,2641.5,2640.9,2.65056]
[1724037750412,2.3271,2641.3,2640.9,2.65056]
[1724037750575,2.3271,2641.3,2641.1,1.613]
[1724037750716,0.07327046,2641.2,2641.1,1.613]
[1724037751152,19.71,2641.4,2641.1,1.613]
[1724037751330,0.07327046,2641.2,2641.1,1.613]
[1724037751553,19.71,2641.4,2641.1,1.613]
[1724037751764,0.07317874,2641.2,2641.1,1.613]
[1724037751972,19.71,2641.4,2641.1,1.613]
[1724037752137,0.07317874,2641.2,2641.1,1.613]
[1724037752337,19.71,2641.4,2641.1,1.613]
[1724037752537,0.07293998,2641.2,2641.1,1.613]
[1724037752733,19.71,2641.4,2641.1,1.613]
[1724037753243,0.07330771,2641.3,2641.1,1.613]
[1724037753846,0.07330771,2641.3,2641.1,4.26338]
[1724037754046,0.07330771,2641.3,2641.2,5.30062]
[1724037754245,0.07330771,2641.3,2641.2,5.85062]
[1724037755266,19.71,2641.6,2641.2,3.20031]
[1724037755464,19.71,2641.6,2641.5,1.613]
[1724037755849,19.78310638,2641.6,2641.5,1.613]
[1724037756576,19.78310638,2641.6,2641.4,2.65003]
[1724037757965,19.78310638,2641.6,2641.2,3.20025]
[1724037757966,19.78310638,2641.6,2641.2,3.20023]
[1724037758172,19.78310638,2641.6,2641.3,0.55]
[1724037759527,19.78310638,2641.6,2641.3,3.2002]
[1724037763175,19.78310638,2641.6,2641.4,2.6501]
[1724037763436,19.78310638,2641.6,2641.3,4.05193551]
[1724037763717,19.78310638,2641.6,2641.3,6.70206551]
[1724037764549,19.78310638,2641.6,2641.3,4.05186551]
[1724037765205,19.78310638,2641.6,2641.3,3.20013]
[1724037765591,2.2761,2641.5,2641.0,6.51942]
[1724037765803,0.07309537,2641.4,2641.0,6.51942]
[1724037766011,0.07309537,2641.4,2641.0,2.65042]
[1724037766708,19.78309537,2641.4,2641.0,2.65042]
[1724037767119,19.78309537,2641.4,2641.1,3.96740994]
[1724037767307,19.78309537,2641.4,2641.1,2.65039]
[1724037770742,19.78309537,2641.4,2641.1,5.30073]
[1724037771408,19.78309537,2641.4,2641.1,2.65034]
[1724037772706,19.71,2641.3,2641.1,2.65034]
[1724037773107,0.07290848,2641.2,2641.1,2.65034]
[1724037773435,19.71,2641.3,2641.1,3.5055341]
[1724037773749,0.07290848,2641.2,2641.1,3.5055341]
[1724037774106,19.71,2641.3,2641.1,3.5055341]
[1724037774314,0.07290848,2641.2,2641.1,6.1558741]
[1724037774522,0.07290848,2641.2,2641.1,7.47283729]
[1724037774714,19.71,2641.3,2641.1,7.47283729]
[1724037775029,19.71,2641.3,2641.2,2.65031]
[1724037775415,19.71,2641.3,2641.2,10.40925504]
[1724037775610,2.3312,2642.2,2641.7,2.6498]
[1724037775812,2.3312,2642.2,2641.8,2.64967]
[1724037776211,2.64915,2642.4,2641.8,2.64967]
[1724037776517,2.64915,2642.4,2642.0,1.612]
[1724037776729,0.07375677,2642.3,2642.0,1.612]
[1724037777652,2.72296677,2642.3,2642.0,1.612]
[1724037778418,2.6494,2642.1,2641.5,5.07855]
[1724037778615,0.33841195,2642.0,2641.5,5.07855]
[1724037779035,0.07347195,2642.0,2641.5,5.07855]
[1724037779442,0.07347195,2642.0,2641.5,2.64995]
[1724037780725,0.07347195,2642.0,2641.5,5.29989]
[1724037781143,7.62996,2642.2,2641.5,5.29989]
[1724037781144,7.62996,2642.2,2641.5,2.64994]
[1724037781329,0.07337359,2641.9,2641.5,2.64994]
[1724037781638,19.78328032,2641.8,2641.5,2.64994]
[1724037781840,19.78328032,2641.8,2641.5,5.29988]
[1724037782118,19.78328032,2641.8,2641.5,2.64994]
[1724037786164,22.21528032,2641.8,2641.3,7.06825539]
[1724037786456,22.21528032,2641.8,2641.3,7.06826394]
[1724037786834,22.21528032,2641.8,2641.3,9.71839394]
[1724037787616,19.71,2641.7,2641.4,2.65009]
[1724037787818,0.07319423,2641.6,2641.4,2.65009]
[1724037788119,19.78319423,2641.6,2641.4,2.65009]
[1724037793324,19.78319423,2641.6,2641.5,2.65]
[1724037793539,0.07319423,2641.6,2641.5,2.65]
[1724037793725,19.71,2641.9,2641.5,2.65]
[1724037793966,0.07319423,2641.6,2641.5,2.65]
[1724037794464,19.71,2641.9,2641.5,2.65]
[1724037794647,0.07332985,2641.8,2641.4,2.6501]
[1724037795426,0.07207474,2641.8,2641.4,2.6501]
[1724037797513,0.07207474,2641.8,2641.4,4.2246069]
[1724037798664,0.07207474,2641.8,2641.5,2.64997]
[1724037799582,19.71,2641.7,2641.5,2.64997]
[1724037799942,0.07315182,2641.6,2641.5,2.64997]
[1724037800533,0.07315182,2641.6,2641.5,4.26197]
[1724037801336,0.07315182,2641.6,2641.5,5.63190068]
[1724037803591,0.07315182,2641.6,2641.5,6.94866987]
[1724037803727,0.07315182,2641.6,2641.5,12.41906987]
[1724037803928,0.07315182,2641.6,2641.5,13.02434374]
[1724037804324,19.71,2641.7,2641.6,2.6499]
[1724037804570,19.71,2641.7,2641.6,3.1999]
[1724037804571,19.78318733,2641.7,2641.6,3.1999]
[1724037804783,19.78318733,2641.7,2641.6,6.878027]
[1724037805665,0.07318733,2641.7,2641.6,6.878027]
[1724037805983,19.71,2642.1,2641.6,6.878027]
[1724037806160,19.71,2642.1,2641.8,1.612]
[1724037807365,0.07336019,2642.0,2641.8,1.612]
[1724037811463,19.78336019,2642.0,2641.8,1.612]
[1724037815343,19.78336019,2642.0,2641.6,1.612]
[1724037815344,25.89780921,2642.0,2641.6,1.612]
[1724037815739,25.89780921,2642.0,2641.2,1.9752547]
[1724037815740,2.64991,2641.6,2641.2,1.9752547]
[1724037815943,2.915011,2641.5,2641.1,1.612]
[1724037816156,2.98815963,2641.5,2641.1,1.612]
[1724037816370,2.72316863,2641.5,2641.1,1.612]
[1724037818966,0.07314863,2641.5,2641.3,1.612]
[1724037819354,0.07314863,2641.5,2641.3,2.280372]
[1724037819554,4.99773,2641.9,2641.3,2.280372]
[1724037819780,4.99773,2641.9,2641.1,5.07179]
[1724037819781,0.07299177,2641.4,2641.1,5.07179]
[1724037820109,6.98497475,2641.9,2641.3,4.2622]
[1724037820260,4.99773,2641.9,2641.6,1.612]
[1724037820451,4.99773,2641.9,2641.3,2.6502]
[1724037820452,7.64741,2641.9,2641.3,2.6502]
[1724037820784,2.64982,2641.7,2641.1,7.72212]
[1724037820998,2.64982,2641.7,2641.1,5.07173]
[1724037822093,2.64982,2641.7,2641.3,1.612]
[1724037822286,3.51092155,2641.7,2641.3,1.612]
[1724037823079,0.0731379,2641.6,2641.3,1.612]
[1724037823396,2.4713,2641.5,2641.3,1.612]
[1724037823744,0.07306339,2641.4,2641.3,1.612]
[1724037824956,3.33240155,2641.7,2641.3,1.612]
[1724037825171,0.07306339,2641.4,2641.3,6.76181]
[1724037825550,4.45817046,2642.0,2641.3,6.76181]
[1724037825551,2.4713,2642.0,2641.4,2.6501]
[1724037825681,2.4713,2642.0,2641.6,1.612]
[1724037825880,5.4713,2642.0,2641.6,1.612]
[1724037826298,19.71,2641.9,2641.6,1.612]
[1724037826814,0.070761,2641.8,2641.6,1.612]
[1724037828971,0.070761,2641.8,2641.5,2.65]
[1724037829696,0.070761,2641.8,2641.4,1.612]
[1724037832324,19.71,2641.7,2641.4,4.2621]
[1724037832468,0.070761,2641.8,2641.4,4.2621]
[1724037832469,0.070761,2641.8,2641.6,3.9702]
[1724037832667,2.3235,2642.5,2642.0,5.00761]
[1724037832886,2.3235,2642.5,2642.1,0.765715]
[1724037833148,2.3235,2642.5,2642.0,3.9702]
[1724037834573,2.64897,2642.6,2642.0,6.6197]
[1724037836463,0.07018561,2642.5,2642.0,6.6197]
[1724037838259,19.71,2642.4,2642.0,6.6197]
[1724037838626,0.07005017,2642.3,2642.0,6.6197]
[1724037840481,0.07005017,2642.3,2642.2,4.2613]
[1724037840772,0.07005017,2642.3,2642.2,9.1886]
[1724037841992,0.07005017,2642.3,2642.2,6.5393]
[1724037844191,0.07005017,2642.3,2642.0,0.92694]
[1724037844192,19.78005017,2642.3,2642.0,1.612]
[1724037844394,19.78005017,2642.3,2642.2,1.612]
[1724037845380,24.40725519,2642.3,2641.8,1.612]
[1724037845798,2.4087,2642.2,2641.8,1.612]
[1724037846179,0.06767301,2642.1,2641.8,1.612]
[1724037849552,21.68800502,2642.3,2641.8,1.612]
[1724037849757,2.72747924,2642.2,2641.8,1.612]
[1724037850087,19.71,2642.1,2641.8,1.612]
[1724037850391,0.06760527,2642.0,2641.8,1.612]
[1724037850694,0.06760527,2642.0,2641.8,4.2617]
[1724037853509,0.06760527,2642.0,2641.6,4.93776]
[1724037853720,0.06760527,2642.0,2641.3,3.0]
[1724037853721,2.0453658,2642.0,2641.4,2.65003]
[1724037853916,19.71,2641.9,2641.6,1.612]
[1724037854205,2.24149108,2641.8,2641.6,1.612]
[1724037855478,0.0659545,2641.8,2641.6,1.612]
[1724037858682,0.0659545,2641.8,2641.6,4.2619]
[1724037859020,19.71,2641.7,2641.6,4.2619]
[1724037859404,19.7758772,2641.7,2641.6,1.612]
[1724037861215,19.7758772,2641.7,2641.6,4.2619]
[1724037864501,19.7758772,2641.7,2641.6,7.283484]
[1724037865012,0.0658772,2641.7,2641.6,7.283484]
[1724037865185,0.0658772,2641.7,2641.6,9.933384]
[1724037865386,19.71,2642.1,2641.7,2.64973]
[1724037865589,0.06607167,2642.0,2641.8,1.612]
[1724037865986,0.06607167,2642.0,2641.9,2.6496]
[1724037866287,0.06607167,2642.0,2641.8,6.91134]
[1724037866948,0.06607167,2642.0,2641.9,2.6496]
[1724037867489,0.06607167,2642.0,2641.9,5.1469]
[1724037869000,0.05533995,2642.0,2641.9,5.1469]
[1724037869406,0.05533995,2642.0,2641.9,8.737357]
[1724037870976,19.76533995,2642.0,2641.9,8.737357]
[1724037876451,19.76533995,2642.0,2641.9,9.287357]
[1724037876839,19.76533995,2642.0,2641.9,10.6038382]
[1724037877640,19.76533995,2642.0,2641.9,10.60387933]
[1724037877873,19.76533995,2642.0,2641.9,9.287357]
[1724037878477,19.76533995,2642.0,2641.9,10.60390814]
[1724037879280,19.76533995,2642.0,2641.9,7.95430814]
[1724037881332,19.76533995,2642.0,2641.9,6.637757]
[1724037882200,19.76533995,2642.0,2641.9,8.249757]
[1724037882426,19.76533995,2642.0,2641.9,0.55]
[1724037882629,19.76533995,2642.0,2641.8,1.612]
[1724037882926,19.71,2641.9,2641.8,1.612]
[1724037883349,19.7734102,2641.9,2641.8,1.612]
[1724037894959,0.0634102,2641.9,2641.8,1.612]
[1724037895478,0.0634102,2641.9,2641.4,4.9683]
[1724037895717,2.7130302,2641.9,2641.6,1.612]
[1724037895916,22.35971,2641.8,2641.6,1.612]
[1724037896085,22.35971,2641.8,2641.2,3.17929472]
[1724037896086,2.65009,2641.5,2641.1,1.97529574]
[1724037896419,0.06318657,2641.4,2641.0,1.612]
[1724037896616,19.71,2641.3,2641.0,1.612]
[1724037896985,0.06303306,2641.2,2641.0,1.612]
[1724037897317,19.71,2641.3,2641.0,1.612]
[1724037897483,0.06290354,2641.1,2641.0,1.612]
[1724037897672,19.71,2641.3,2641.0,1.612]
[1724037898317,0.06297137,2641.2,2641.0,1.612]
[1724037898671,19.71,2641.3,2641.0,1.612]
[1724037898868,0.0629341,2641.1,2641.0,1.612]
[1724037899096,19.71,2641.3,2641.0,1.612]
[1724037899268,0.0629341,2641.1,2641.0,1.612]
[1724037899483,19.71,2641.3,2641.0,1.612]
[1724037899689,0.0629341,2641.1,2641.0,1.612]
[1724037899882,19.71,2641.3,2641.0,1.612]
[1724037900088,0.06290354,2641.1,2641.0,1.612]
[1724037900287,19.71,2641.3,2641.0,1.612]
[1724037900511,0.0629341,2641.1,2641.0,1.612]
[1724037901027,19.71,2641.4,2641.0,1.612]
[1724037901214,0.06306976,2641.3,2641.0,1.612]
[1724037906224,0.06306976,2641.3,2641.0,1.61106608]
[1724037906629,19.77306976,2641.3,2641.0,1.61106608]
[1724037912605,19.71,2641.2,2641.0,1.61106608]
[1724037912807,0.06294,2641.1,2641.0,1.61106608]
[1724037916728,0.06294,2641.1,2641.0,4.26157608]
[1724037916908,0.06294,2641.1,2641.0,10.47980669]
[1724037917756,19.71,2641.2,2641.1,5.30082]
[1724037917896,19.71,2641.2,2641.1,8.20392]
[1724037918096,19.71,2641.2,2641.1,9.80724167]
[1724037918497,19.71,2641.6,2641.5,4.9339]
[1724037918802,19.71,2641.6,2641.5,6.5459]
[1724037920099,19.71,2641.6,2641.5,3.8959]
[1724037920718,19.77427795,2641.6,2641.5,3.8959]
[1724037923898,19.77427795,2641.6,2641.5,6.5459]
[1724037924059,19.77427795,2641.6,2641.5,7.46551]
[1724037924254,0.06427795,2641.6,2641.5,7.46551]
[1724037924485,19.71,2641.9,2641.5,7.46551]
[1724037924694,19.71,2641.9,2641.6,2.6499]
[1724037924866,19.71,2642.1,2641.6,2.6499]
[1724037926800,19.71,2642.1,2641.8,2.417]
[1724037928203,0.06483897,2642.0,2641.8,2.417]
[1724037928700,0.06483897,2642.0,2641.7,0.55]
[1724037928998,0.06483897,2642.0,2641.6,2.967]
[1724037930571,0.06483897,2642.0,2641.6,5.6169]
[1724037930773,2.6493,2642.2,2641.6,5.6169]
[1724037930968,3.340343,2642.2,2641.6,5.6169]
[1724037931169,0.06247557,2642.1,2641.6,5.6169]
[1724037933690,0.06247557,2642.1,2641.4,2.296]
[1724037933934,0.06247557,2642.1,2641.4,3.908]
[1724037934216,0.47976313,2642.1,2641.4,3.908]
[1724037934800,2.64962,2641.9,2641.4,3.908]
[1724037934981,0.06227681,2641.8,2641.4,3.908]
[1724037936168,0.06227681,2641.8,2641.2,2.4016]
[1724037936169,2.64988,2641.7,2641.2,2.4016]
[1724037936382,20.04335698,2641.6,2641.2,2.4016]
[1724037936583,22.69333698,2641.6,2641.1,1.612]
[1724037938174,20.04335698,2641.6,2641.1,4.2624]
[1724037938368,19.7721413,2641.6,2641.1,4.2624]
[1724037938874,19.7721413,2641.6,2641.2,2.3809]
[1724037939882,19.7721413,2641.6,2641.3,1.612]
[1724037940073,19.7721413,2641.6,2641.3,4.26214]
[1724037942168,0.0621413,2641.6,2641.3,4.26214]
[1724037942527,19.71,2641.8,2641.3,4.26214]
[1724037942722,0.06207354,2641.5,2641.3,4.26214]
[1724037942903,19.71,2641.8,2641.3,4.26214]
[1724037943079,0.06200578,2641.4,2641.3,4.26214]
[1724037943278,19.71,2641.8,2641.3,8.066884]
[1724037943479,0.06220906,2641.7,2641.5,1.612]
[1724037943724,19.71,2641.8,2641.5,1.612]
[1724037943909,0.0621413,2641.6,2641.5,3.9374]
[1724037944103,19.71,2641.8,2641.5,3.9374]
[1724037944311,0.0621413,2641.6,2641.5,3.9374]
[1724037944624,19.71,2641.8,2641.5,3.9374]
[1724037944975,0.06220906,2641.7,2641.5,3.9374]
[1724037945324,19.71,2641.8,2641.5,2.3254]
[1724037945480,0.0621413,2641.6,2641.3,2.162]
[1724037945681,22.939911,2641.8,2641.4,0.55]
[1724037945883,0.06220123,2641.7,2641.4,0.55]
[1724037946327,22.939911,2641.8,2641.4,0.55]
[1724037946536,0.06213347,2641.6,2641.4,0.55]
[1724037946829,0.06206571,2641.5,2641.4,0.55]
[1724037946988,2.5589521,2641.7,2641.4,0.55]
[1724037947190,2.5589521,2641.7,2641.1,4.0879]
[1724037947191,0.06213347,2641.6,2641.1,4.0879]
[1724037947431,0.06213347,2641.6,2641.1,4.6379]
[1724037948227,19.71,2641.5,2641.1,4.6379]
[1724037948400,0.06201748,2641.4,2641.1,4.6379]
[1724037949189,0.06201748,2641.4,2641.3,1.612]
[1724037951732,0.06201748,2641.4,2641.3,2.162]
[1724037954396,19.71,2641.8,2641.3,2.162]
[1724037954730,0.06006884,2641.7,2641.4,0.55]
[1724037954902,2.30204072,2641.7,2641.4,0.55]
[1724037955103,2.24197188,2641.7,2641.4,0.55]
[1724037955373,0.06000109,2641.6,2641.4,0.55]
[1724037956032,19.71,2641.8,2641.4,0.55]
[1724037956033,0.05993332,2641.5,2641.4,0.55]
[1724037956228,19.71,2641.8,2641.4,0.55]
[1724037956407,2.56100284,2641.7,2641.4,0.55]
[1724037959801,0.06006884,2641.7,2641.4,2.885]
[1724037960002,22.3597,2641.8,2641.4,2.885]
[1724037960233,19.77006884,2641.7,2641.4,2.885]
[1724037961004,19.77006884,2641.7,2641.6,2.4283]
[1724037961348,19.77006884,2641.7,2641.6,9.002122]
[1724037961545,0.06006884,2641.7,2641.6,13.31880128]
[1724037961718,0.06006884,2641.7,2641.6,15.29382021]
[1724037961900,19.71,2642.3,2642.1,5.04998]
[1724037962101,19.71,2642.3,2642.2,1.612]
[1724037962306,19.71,2642.4,2642.3,2.6492]
[1724037962620,19.71,2642.4,2642.2,4.2613]
[1724037963038,19.71,2642.4,2642.3,5.0498]
[1724037963850,19.76813733,2642.4,2642.3,2.4006]
[1724037964545,0.05813733,2642.4,2642.3,5.5998]
[1724037964716,0.05813733,2642.4,2642.3,6.6790176]
[1724037964945,27.0,2642.8,2642.4,2.64906]
[1724037965152,27.0,2642.8,2642.5,1.612]
[1724037966484,19.71,2642.7,2642.5,1.612]
[1724037966643,19.71,2642.7,2642.6,6.079606]
[1724037967347,19.76840746,2642.7,2642.6,6.079606]
[1724037968343,19.76840746,2642.7,2642.6,5.6535]
[1724037972056,0.05840746,2642.7,2642.6,5.6535]
[1724037972258,19.71,2643.1,2642.6,5.6535]
[1724037972487,0.05864108,2643.0,2642.6,5.6535]
[1724037976215,0.05864108,2643.0,2642.7,2.64879]
[1724037976386,0.05864108,2643.0,2642.6,3.1989]
[1724037976546,0.05864108,2643.0,2642.6,3.19881]
[1724037976747,0.05864108,2643.0,2642.7,4.2608]
[1724037978000,19.76864108,2643.0,2642.7,4.2608]
[1724037978418,19.76864108,2643.0,2642.6,3.19881]
[1724037978597,22.47450519,2643.0,2642.7,2.6488]
[1724037978759,19.76864108,2643.0,2642.7,2.6488]
[1724037979159,19.76864108,2643.0,2642.6,4.81081]
[1724037979160,22.11754108,2643.0,2642.6,4.81081]
[1724037979587,19.76864108,2643.0,2642.6,4.81081]
[1724037980758,19.76864108,2643.0,2642.7,2.64879]
[1724037981204,19.71,2642.9,2642.7,2.64879]
[1724037981611,0.0584765,2642.8,2642.6,4.81081]
[1724037982305,2.4238,2642.7,2642.2,2.64921]
[1724037982503,0.05834106,2642.6,2642.2,2.64921]
[1724037984567,0.05834106,2642.6,2642.3,1.612]
[1724037985110,1.97684765,2642.8,2642.3,1.612]
[1724037985111,0.05825326,2642.5,2642.3,1.612]
[1724037985313,19.71,2642.7,2642.3,1.612]
[1724037985470,0.05859678,2642.6,2642.3,4.26119]
[1724037988626,0.05859678,2642.6,2642.3,1.612]
[1724037988836,0.05859678,2642.6,2642.2,2.6493]
[1724037990108,19.76859678,2642.6,2642.2,2.6493]
[1724037990423,19.76859678,2642.6,2642.1,6.5216]
[1724037990632,19.76859678,2642.6,2642.2,0.55]
[1724037991744,19.76859678,2642.6,2642.2,3.19924]
[1724037994732,19.76859678,2642.6,2642.2,0.55]
[1724037994888,19.76859678,2642.6,2642.1,6.52154]
[1724037994889,2.2703,2642.5,2642.1,2.64934]
[1724037995112,2.32887349,2642.5,2642.1,2.64934]
[1724037996254,19.71,2642.4,2642.1,2.64934]
[1724037996544,19.76850577,2642.4,2642.1,2.64934]
[1724037998466,19.76850577,2642.4,2642.2,1.612]
[1724037999546,19.76850577,2642.4,2642.2,4.26128]
[1724038000350,19.76850577,2642.4,2642.2,4.26124]
[1724038000655,19.76850577,2642.4,2642.2,7.002864]
[1724038000950,19.76850577,2642.4,2642.2,6.57674]
[1724038001110,19.76850577,2642.4,2642.2,9.22598]
[1724038001741,19.76850577,2642.4,2642.3,2.6492]
[1724038001932,19.76850577,2642.4,2642.0,4.95496]
[1724038002143,19.71,2642.3,2642.0,4.95493]
[1724038002459,19.76842299,2642.3,2642.0,7.60437]
[1724038002682,19.76842299,2642.3,2642.1,1.612]
[1724038003499,19.76842299,2642.3,2641.8,2.64966]
[1724038003500,19.71,2642.2,2641.8,2.64966]
[1724038003657,19.71,2642.2,2641.8,4.26166]
[1724038003843,19.76816604,2642.2,2641.8,4.26166]
[1724038004043,22.44009287,2642.2,2641.8,4.26166]
[1724038005856,22.44009287,2642.2,2641.8,6.9113]
[1724038006078,19.76816604,2642.2,2641.8,6.9113]
[1724038006790,19.76816604,2642.2,2641.8,4.26164]
[1724038008046,19.71,2642.1,2641.8,4.26164]
[1724038008240,19.71,2642.1,2642.0,4.2615]
[1724038008479,19.71,2642.1,2642.0,7.880009]
[1724038009999,19.71,2642.1,2642.0,10.529509]
[1724038013866,19.71,2642.5,2642.2,2.64927]
[1724038014069,19.71,2642.5,2642.2,4.26127]
[1724038014269,0.05833322,2642.4,2642.2,4.26127]
[1724038015919,0.05833322,2642.4,2642.0,7.1889]
[1724038016073,0.05833322,2642.4,2642.1,3.19934]
[1724038016273,0.05833322,2642.4,2642.2,4.26124]
[1724038016512,0.05833322,2642.4,2642.3,3.130324]
[1724038016669,0.05833322,2642.4,2642.2,4.26124]
[1724038017318,0.05833322,2642.4,2642.3,2.6492]
[1724038017474,0.05833322,2642.4,2642.3,3.1992]
[1724038017868,29.3092,2642.8,2642.3,3.1992]
[1724038018110,0.05818454,2642.4,2642.3,3.1992]
[1724038018297,29.3092,2642.8,2642.3,3.1992]
[1724038018502,29.3092,2642.8,2642.0,2.3774]
[1724038018503,0.05818454,2642.4,2642.1,2.64938]
[1724038018722,0.05818454,2642.4,2642.2,0.55]
[1724038018875,0.05818454,2642.4,2642.0,5.02682]